Cogmind - Beta 15 @@@ ROGUE MODE // 2025.05.29 @ 06:08:45 Player: Cereal Killer Result: Destroyed by 8R-AWN with 8R-AWN's Boregun Performance ------------- Evolutions (1) 500 Regions Visited (5) 1000 Robots Destroyed (52) 260 Value Destroyed (1311) 1311 Prototype IDs (26) 520 Alien Tech Used (0) 0 Bonus (228) 228 TOTAL SCORE: 3819 Bonus ------- Aligned with FarCom 300 Friendly Fire -72 Cogmind --------- Core Integrity 0/400 Matter 85/300 Energy 265/265 System Corruption 0% Temperature Warm (196) Movement Core (1300) Ox25 Location -9/Exiles Parts ------- > --- POWER (1) -------- Reinforced Ion Engine > --- PROPULSION (2) --- (None) > --- UTILITY (4) ------ High-capacity Storage Unit Hardened Light Armor Plating Decoy Drone Bay (0/16) > --- WEAPON (2) ------- Autogun Improved Light Cannon > --- INVENTORY (20) --- Reinforced Ion Engine Light Nuclear Core Heat Sink Improved Heat Sink Large Storage Unit Improved Terrain Scanner Hardened Light Armor Plating Hacking Suite Mini Grenade Launcher Peak State ------------ > --- POWER ------------ Ion Engine > --- PROPULSION ------- Wheel Wheel > --- UTILITY ---------- Large Storage Unit Improved Terrain Scanner Decoy Drone Bay > --- WEAPON ----------- Autogun Autogun > --- INVENTORY -------- Ion Engine Light Nuclear Core Heat Sink Improved Heat Sink Small Storage Unit Large Matter Pod Large Matter Pod Heavy EM Pulse Gun Light Cannon Light Cannon Light Cannon Grenade Launcher [Rating: 26] Favorites ----------- Power Ion Engine Engine Ion Engine Propulsion Wheel Wheel Wheel Utility Improved Terrain Scanner Device Improved Terrain Scanner Storage High-capacity Storage Unit Protection Light Armor Plating Weapon Autogun Energy Gun Improved EM Shotgun Ballistic Gun Autogun Ballistic Cannon Improved Light Cannon Launcher Grenade Launcher Build | -11 -10 -10 -9 -9 -9 ------- Run | Yrd Mat Min Mat Min Exi Slots Evolved 2 | . . . 2 . . Power . | . . . . . . Propulsion . | . . . . . . Utility 2 | . . . 2 . . Weapon . | . . . . . . Parts Attached 39 | 6 8 2 17 . 6 Power 4 | 1 1 . 2 . . Engine 4 | 1 1 . 2 . . Core . | . . . . . . Reactor . | . . . . . . Propulsion 8 | 2 3 . 2 . 1 Treads . | . . . . . . Leg . | . . . . . . Wheel 8 | 2 3 . 2 . 1 Hover . | . . . . . . Flight . | . . . . . . Utility 13 | 1 2 . 6 . 4 Device 3 | . 1 . 1 . 1 Storage 3 | 1 1 . 1 . . Processor . | . . . . . . Hackware . | . . . . . . Protection 7 | . . . 4 . 3 Artifact . | . . . . . . Weapon 14 | 2 2 2 7 . 1 Energy Gun 2 | . . . 2 . . Energy Cannon . | . . . . . . Ballistic Gun 6 | 2 2 2 . . . Ballistic Cannon 5 | . . . 4 . 1 Launcher 1 | . . . 1 . . Special Weapon . | . . . . . . Impact Weapon . | . . . . . . Slashing Weapon . | . . . . . . Piercing Weapon . | . . . . . . Special Melee Weapon . | . . . . . . Unidentified Prototypes 3 | . . . 3 . . Parts Lost 16 | . 2 . 6 . 8 Power 1 | . . . 1 . . Propulsion 7 | . 2 . 2 . 3 Utility 4 | . . . 2 . 2 Weapon 4 | . . . 1 . 3 Highest Loss Streak 7 | . 2 . 3 . 7 To Critical Strikes . | . . . . . . Average Backups 14 | 2 9 14 17 18 15 Power 1 | . 1 2 2 2 2 Propulsion . | . . . . 1 . Utility 6 | . 1 4 8 10 8 Weapon 5 | 1 5 6 5 5 3 Tool/Special . | . . . . . . Unused Backups 16 | . 3 . 5 . 8 Power 3 | . 1 . . . 2 Propulsion . | . . . . . . Utility 7 | . 1 . 2 . 4 Weapon 5 | . 1 . 3 . 1 Tool/Special 1 | . . . . . 1 Average Slot Usage (%) 88 | . 85 100 91 88 80 Engine 11 | . 14 14 10 11 11 Wheel 22 | . 26 28 21 22 14 Device 8 | . 2 14 11 11 11 Storage 12 | . 14 14 11 11 11 Protection 8 | . . . 14 11 11 Ballistic Gun 12 | . 27 28 5 . 2 Ballistic Cannon 11 | . . . 16 22 18 Peak Build Rating 26 | 6 13 14 26 23 25 Average Rating 15 | 4 9 13 17 23 22 On Entrance 13 | . 6 13 14 23 23 Naked Turns . | . . . . . . Heaviest Build 76 | 13 32 32 74 74 76 Greatest Support 26 | 26 26 26 20 20 20 Greatest Overweight (x) 25 | . 1 3 5 3 25 Average Overweight (x) 1 | . . 2 2 3 3 Largest Inventory Capacity 20 | 8 15 15 20 20 20 Average Capacity 16 | 7 10 15 19 20 20 Most Carried 20 | 5 14 15 20 20 20 Average Carried 15 | 1 9 14 18 20 16 Final Capacity 20 | 8 15 15 20 20 20 Final Carried 20 | 2 13 14 20 20 9 Class Distribution -------------------- 64% | Mutant 35% | Scavenger-Mutant Dominant Class ---------------- Mutant | -10/Materials Mutant | -10/Mines Scavenger-Mutant | -9/Materials Mutant | -9/Mines Mutant | -9/Exiles Resources | -11 -10 -10 -9 -9 -9 ----------- Run | Yrd Mat Min Mat Min Exi Matter Collected 2249 | 223 394 389 931 . 312 Remotely . | . . . . . . Salvage Created 1802 | . 554 14 1195 . 39 Parts 105 | . 35 . 70 . . Haulers Intercepted 6 | . 2 . 4 . . Recyclers Shooed 2 | . . . 2 . . Parts Field Recycled . | . . . . . . Retrieved Matter . | . . . . . . Parts Self-Destructed . | . . . . . . Prevented . | . . . . . . Kills | -11 -10 -10 -9 -9 -9 ------- Run | Yrd Mat Min Mat Min Exi Combat Hostiles Destroyed 41 | . 7 1 26 . 7 Guns 12 | . 7 1 4 . . Cannons 23 | . . . 19 . 4 AOE 6 | . . . 3 . 3 Classes Destroyed 12 | . 6 1 4 . 1 Worker 4 | . 1 . 3 . . Tunneler 1 | . 1 . . . . Hauler 6 | . 2 . 4 . . Recycler 2 | . 1 . 1 . . Operator 2 | . . . 2 . . Watcher 3 | . 2 . 1 . . Swarmer 4 | . . . 4 . . Grunt 19 | . 7 . 12 . . Duelist 2 | . . . 2 . . Sentry 8 | . . . 8 . . Zionite 1 | . . . . . 1 Assembled 8 | . . 1 . . 7 Best Kill Streak 8 | . 6 1 8 . 8 Combat Bots Only 7 | . 4 1 4 . 7 Max Kills in Single Turn 6 | . 2 1 6 . 3 Gunslinging 1 | . 1 . . . . Exploded 3 | . . . 3 . 2 Melee . | . . . . . . Uniques/NPCs Destroyed . | . . . . . . Combat | -11 -10 -10 -9 -9 -9 -------- Run | Yrd Mat Min Mat Min Exi Hostile Shots Fired 276 | . 35 1 124 . 116 Missed 79 | . 11 . 43 . 25 Hits 197 | . 24 1 81 . 91 Melee 4 | . . . 4 . . Projectile 193 | . 24 1 77 . 91 Critical Strikes 26 | . 1 . 2 . 23 Part Disruptions 1 | . . 1 . . . Damage Taken 3409 | . 339 11 1093 . 1966 Core 439 | . 29 . 217 . 193 Absorbed by Shields . | . . . . . . Core Remaining (%) 94 | 100 . 88 . . . Volleys Fired 201 | . 48 2 104 . 47 Largest 2 | . 2 2 2 . 2 Hottest 66 | . 46 46 66 . 66 Shots Fired 388 | . 96 4 199 . 89 Gun 197 | . 96 4 72 . 25 Cannon 185 | . . . 124 . 61 Launcher 6 | . . . 3 . 3 Special . | . . . . . . Kinetic 382 | . 96 4 196 . 86 Thermal . | . . . . . . Explosive 6 | . . . 3 . 3 Electromagnetic . | . . . . . . Robot Hit Streak 30 | . 10 1 30 . 6 Robot Miss Streak 5 | . 3 2 5 . 5 Penetration Max . | . . . . . . Secondary Targets 1 | . 1 . . . . Max Gunslinging Chain 1 | . 1 . . . . Shots Hit Robots 223 | . 56 2 116 . 49 Core Hits 100 | . 20 2 59 . 19 Critical Kills 1 | . 1 . . . . Critical Parts Destroyed 1 | . 1 . . . . Critical Strikes 6 | . 2 . 2 . 2 Destroy 2 | . 2 . . . . Blast 4 | . . . 2 . 2 Melee Attacks . | . . . . . . Impact . | . . . . . . Slashing . | . . . . . . Piercing . | . . . . . . Sneak Attacks . | . . . . . . Combat Hostiles . | . . . . . . Follow-up Attacks . | . . . . . . Damage Inflicted 4705 | . 882 28 2594 . 1201 Guns 1861 | . 882 28 702 . 249 Cannons 2030 | . . . 1274 . 756 Explosions 814 | . . . 618 . 196 Melee . | . . . . . . Ramming . | . . . . . . Kinetic 3891 | . 882 28 1976 . 1005 Thermal 66 | . . . 66 . . Explosive 435 | . . . 239 . 196 Electromagnetic 313 | . . . 313 . . Impact . | . . . . . . Slashing . | . . . . . . Piercing . | . . . . . . Highest Corruption 3 | . 3 3 . . . Average Corruption 2 | . 2 3 . . . Corruption Purged . | . . . . . . Corruption Blocked . | . . . . . . Effects 5 | . 2 3 . . . Message Errors 2 | . 1 1 . . . Energy Discharges 2 | . . 2 . . . Data Loss (minor) 1 | . 1 . . . . Overload Shots . | . . . . . . Overflow Damage 5 | . . . 4 . 1 Projectiles 1 | . . . . . 1 Explosions 4 | . . . 4 . . Melee . | . . . . . . Knockbacks 20 | . . . 8 . 12 Impact . | . . . . . . Kinetic 18 | . . . 7 . 11 Secondary 2 | . . . 1 . 1 Self-Inflicted Damage . | . . . . . . Shots . | . . . . . . Rammed . | . . . . . . Targets Rammed . | . . . . . . Kicked . | . . . . . . Crushed . | . . . . . . Highest Temperature 254 | . 72 26 135 . 254 Average Temperature 49 | . 20 11 30 . 108 Received Heat Transfer 605 | . 210 20 315 . 60 Siege Activations . | . . . . . . Martial Activations . | . . . . . . Shielding Activations . | . . . . . . Robots Disrupted . | . . . . . . Combat Hostiles . | . . . . . . Robots Corrupted . | . . . . . . Combat Hostiles . | . . . . . . Parts Fried . | . . . . . . Impact Corruptions . | . . . . . . Robots Melted . | . . . . . . Combat Hostiles . | . . . . . . Parts Melted . | . . . . . . Heat Transferred 100 | . . . 100 . . Parts Sabotaged . | . . . . . . Parts Stolen . | . . . . . . Parts Stripped . | . . . . . . Power Chain Reactions 2 | . . . 2 . . Alert | -11 -10 -10 -9 -9 -9 ------- Run | Yrd Mat Min Mat Min Exi Maximum Alert Level 2 | . . . 2 . . Low Security (%) 74 | 100 100 100 49 100 . Level 1 23 | . . . 47 . . Level 2 1 | . . . 3 . . Level 3 . | . . . . . . Level 4 . | . . . . . . Level 5 . | . . . . . . High Security . | . . . . . . Max Security . | . . . . . . Peak Influence 403 | . 111 11 403 154 . Initial 154 | . . 11 . 154 . Average 111 | . 42 . 184 141 . Influence Increases 1114 | . 241 . 873 . . Destroy 0b10 Robot/C 660 | . 140 . 520 . . Destroy 0b10 Robot/NC 90 | . 35 . 55 . . Destroy Leader 178 | . 38 . 140 . . Successful Hack 20 | . 10 . 10 . . Select Force Hacks 60 | . . . 60 . . Disable Machine 30 | . . . 30 . . Destroy Structure 16 | . 3 . 13 . . Lose Combat Pursuer 60 | . 15 . 45 . . Influence Decreases 1114 | . 211 30 476 273 124 Entered New Map 386 | . . 19 . 243 124 Time Decay 648 | . 191 11 416 30 . Lost Part 80 | . 20 . 60 . . Squads Dispatched 4 | . 1 . 3 . . Investigation 3 | . 1 . 2 . . Extermination . | . . . . . . Reinforcement 1 | . . . 1 . . Assault . | . . . . . . Garrison . | . . . . . . Intercept . | . . . . . . Searches Triggered . | . . . . . . Construction Impeded . | . . . . . . Haulers Reinforced . | . . . . . . Active Scanning Responses . | . . . . . . Cargo Convoy Interrupts . | . . . . . . Stealth | -11 -10 -10 -9 -9 -9 --------- Run | Yrd Mat Min Mat Min Exi Distress Signals 1 | . . . 1 . . Communications Jammed . | . . . . . . Distress Signals . | . . . . . . Times Spotted 67 | . 11 3 39 . 14 Peak Tracking Total 13 | . 2 9 6 . 13 Tactical Retreats 5 | . 1 1 2 . 1 Traps | -11 -10 -10 -9 -9 -9 ------- Run | Yrd Mat Min Mat Min Exi Traps Triggered 6 | . 6 . . . . Indirectly . | . . . . . . Trap Hack Attempts . | . . . . . . Triggered . | . . . . . . Disarmed . | . . . . . . Reprogrammed . | . . . . . . Reused . | . . . . . . Traps Extracted . | . . . . . . Installed . | . . . . . . Triggered . | . . . . . . Machines | -11 -10 -10 -9 -9 -9 ---------- Run | Yrd Mat Min Mat Min Exi Machines Disabled 8 | . . . 2 . 6 Max in Single Turn 2 | . . . 2 . 1 Machines Repaired . | . . . . . . Machines Dismantled . | . . . . . . Machines Sabotaged . | . . . . . . Overloaded Fab Kills . | . . . . . . Hacking | -11 -10 -10 -9 -9 -9 --------- Run | Yrd Mat Min Mat Min Exi Machines Accessed 14 | . 5 1 6 . 2 Terminals 9 | . 5 . 4 . . Fabricators . | . . . . . . Repair Stations . | . . . . . . Recycling Units . | . . . . . . Scanalyzers 2 | . . . 2 . . Garrison Access . | . . . . . . Total Hacks 36 | . 15 1 18 . 2 Successful 19 | . 5 1 11 . 2 Failed 17 | . 10 . 7 . . Catastrophic 1 | . 1 . . . . Database Lockouts . | . . . . . . Manual 16 | . 6 . 9 . 1 Terminals 27 | . 15 . 12 . . Fabricators . | . . . . . . Repair Stations . | . . . . . . Recycling Units . | . . . . . . Scanalyzers 6 | . . . 6 . . Garrison Access . | . . . . . . Terminal Hacks 14 | . 5 1 6 . 2 Record 1 | . . . . . 1 Robot Analysis 4 | . 3 . 1 . . Open Door 1 | . . 1 . . . Alert Level 1 | . . . 1 . . Locate Traps 3 | . 1 . 2 . . Zone Layout 3 | . 1 . 2 . . Proto ID Catalog 1 | . . . . . 1 Fabricator Hacks . | . . . . . . Repair Station Hacks . | . . . . . . Recycling Unit Hacks . | . . . . . . Scanalyzer 2 | . . . 2 . . Insert Component 1 | . . . 1 . . Analyze 1 | . . . 1 . . Garrison Access Hacks . | . . . . . . Unauthorized Hacks 3 | . . . 3 . . Terminals 1 | . . . 1 . . Botnet 1 | . . . 1 . . Fabricators . | . . . . . . Repair Stations . | . . . . . . Recycling Units . | . . . . . . Scanalyzers 2 | . . . 2 . . Extract 2 | . . . 2 . . Garrison Access . | . . . . . . Data Cores Recovered 1 | . . . 1 . . Used . | . . . . . . Hacking Detections 8 | . 5 . 3 . . Full Trace Events . | . . . . . . Feedback Events . | . . . . . . Feedback Blocked . | . . . . . . Robot Schematics Acquired . | . . . . . . Robots Built . | . . . . . . Authchips . | . . . . . . Time . | . . . . . . Total Robot Build Rating . | . . . . . . Part Schematics Acquired 5 | . . . 5 . . Parts Built . | . . . . . . Authchips . | . . . . . . Time . | . . . . . . Total Part Build Rating . | . . . . . . Parts Repaired . | . . . . . . Time . | . . . . . . Parts Recycled . | . . . . . . Recycled Matter . | . . . . . . Retrieved Matter . | . . . . . . Retrieved Components . | . . . . . . Parts Scanalyzed 1 | . . . 1 . . Part Schematics Acquired 1 | . . . 1 . . Parts Damaged . | . . . . . . Bothacking | -11 -10 -10 -9 -9 -9 ------------ Run | Yrd Mat Min Mat Min Exi Used RIF Installer . | . . . . . . Robots Hacked . | . . . . . . Non-combat . | . . . . . . Combat . | . . . . . . Robot Hacks Applied . | . . . . . . Relay Couplers Released . | . . . . . . Fabnet Peak Effective % . | . . . . . . Robots Rewired . | . . . . . . Allies Hacked . | . . . . . . Hacks Repelled . | . . . . . . Allies | -11 -10 -10 -9 -9 -9 -------- Run | Yrd Mat Min Mat Min Exi Total Allies . | . . . . . . Largest Group . | . . . . . . Highest-Rated Group . | . . . . . . Highest-Rated Ally . | . . . . . . Total Orders . | . . . . . . Ally Attacks . | . . . . . . Total Damage . | . . . . . . Kills . | . . . . . . Allies Corrupted . | . . . . . . Allies Melted . | . . . . . . Intel | -11 -10 -10 -9 -9 -9 ------- Run | Yrd Mat Min Mat Min Exi Active Infowar (turns) 1900 | . 107 248 1082 68 395 Terrain 1900 | . 107 248 1082 68 395 Robot Analysis Total 4 | . 3 . 1 . . Derelict Logs Recovered 1 | . . 1 . . . Drone Launches 16 | . . . . . 16 Drone Recoveries . | . . . . . . Exploration | -11 -10 -10 -9 -9 -9 ------------- Run | Yrd Mat Min Mat Min Exi Turns Passed 2651 | 53 685 248 1082 68 515 Spaces Moved 1719 | 46 528 202 623 55 265 Core 3 | 2 . . . . 1 Treads . | . . . . . . Legs . | . . . . . . Wheels 1716 | 44 528 202 623 55 264 Hover . | . . . . . . Flight . | . . . . . . Fastest Speed 50 | 50 90 95 95 125 125 Average Speed 111 | 85 94 114 116 125 130 Slowest Speed 1300 | 90 115 125 155 125 1300 Overloaded Moves . | . . . . . . Propulsion Burnouts . | . . . . . . Robots Hopped . | . . . . . . Potential Cave-ins . | . . . . . . Cave-ins Triggered . | . . . . . . Time Travels 1 | . . . . . 1 Exploration Rate (%) 50 | 3 86 57 68 13 77 Regions Visited 5 Branch Regions 3 Pre-discovered Areas 1 | . . . . . 1 Known Exits Taken . | . . . . . . Unknown Exits Taken 5 | 1 1 1 1 1 . Scrap Searched . | . . . . . . Spaces Dug . | . . . . . . Terrain Destroyed 9 | . . . 9 . . Melee . | . . . . . . Projectile 1 | . . . 1 . . AOE 8 | . . . 8 . . Terrain Rammed . | . . . . . . Walls Destroyed . | . . . . . . Machines Disabled . | . . . . . . Actions | -11 -10 -10 -9 -9 -9 --------- Run | Yrd Mat Min Mat Min Exi Total 2117 | 59 638 215 799 54 352 Wait 65 | . 18 3 19 . 25 Move 1714 | 45 527 201 622 54 265 Hop . | . . . . . . Pick Up 57 | 8 25 3 19 . 2 Fast Attach 3 | . . . 3 . . Attach 32 | 6 10 . 8 . 8 Detach 2 | . 1 . 1 . . Swap 17 | . 3 3 10 . 1 Drop 26 | . 6 3 13 . 4 Fire 201 | . 48 2 104 . 47 Melee . | . . . . . . Ram . | . . . . . . Kick . | . . . . . . Crush . | . . . . . . Escape Stasis . | . . . . . . Rewire . | . . . . . . Trap . | . . . . . . Miscellaneous . | . . . . . . Route ------- -11/Scrapyard -10/Materials (discovered 4 exits: *Mat x3 / *Min) -10/Mines -9/Materials (discovered 3 exits: *Mat x2 / [*Min]) -9/Mines -9/Exiles (discovered 1 exit: [*Min]) History --------- Turn | Location | Event 18 | -11/Scrapyard | Discovered new exit (range 16) 54 | -11/Scrapyard | Entered Materials 201 | -10/Materials | Discovered new exit (range 5) 305 | -10/Materials | Build established: Mutant 320 | -10/Materials | Discovered new exit (range 15) 640 | -10/Materials | Discovered new exit (range 15) 731 | -10/Materials | Discovered new exit (range 6) 739 | -10/Materials | Entered Mines 742 | -10/Mines | Assembled infested the area 781 | -10/Mines | Learned 2 Materials zone layouts 928 | -10/Mines | Found the Drone Emporium 944 | -10/Mines | Found Prototype Device 979 | -10/Mines | Discovered new exit (range 7) 987 | -10/Mines | Entered Materials 987 | -9/Materials | Evolved 2 slots: Utility x2 987 | -9/Materials | Identified Decoy Drone Bay 988 | -9/Materials | Identified exit to Materials 1230 | -9/Materials | Build established: Scavenger-Mutant 1264 | -9/Materials | Lost 3 parts (1p1u1w) 1757 | -9/Materials | Core integrity fell below 50% 1775 | -9/Materials | Discovered exit to Materials (range 9) 2050 | -9/Materials | Discovered new exit (range 12) 2069 | -9/Materials | Entered Mines 2132 | -9/Mines | Deemed a non-threat by the Exiles lab entrance 2132 | -9/Mines | Discovered new exit (range 5) 2137 | -9/Mines | Entered Exiles 2155 | -9/Exiles | Build established: Mutant 2167 | -9/Exiles | Met 8R-AWN 2189 | -9/Exiles | Met EX-HEX 2222 | -9/Exiles | Met EX-BIN 2240 | -9/Exiles | Aligned with FarCom system 2241 | -9/Exiles | Given EX-Vault access code 2271 | -9/Exiles | Opened EX-Vault 2279 | -9/Exiles | Found Chronowheel 2304 | -9/Exiles | Warned to stay clear of 0b10 Research branches 2340 | -9/Exiles | Met EX-DEC 2346 | -9/Exiles | Learned location of Zion (-7) 2389 | -9/Exiles | Discovered new exit (range 14) 2452 | -9/Exiles | Attacked by the Exiles 2532 | -9/Exiles | Lost 7 parts (3n2u2w) 2543 | -9/Exiles | Destroyed 7 combat bots 2550 | -9/Exiles | Core integrity fell below 20% 2563 | -9/Exiles | Activated Chronowheel 2563 | -9/Exiles | Spacetime reconverged on an earlier point 2632 | -9/Exiles | Lost 9 allies 2652 | -9/Exiles | Destroyed by 8R-AWN with 8R-AWN's Boregun Last Messages --------------- 02627_ Dropped Lrg. Matter Pod. 02628_ Extracted 150 matter. 02631_ Penetrated by HV Slug. 02631_ HV Slug penetrates Wall. 02635_ Penetrated by HV Slug. 02635_ HV Slug penetrates Wall. 02635_ Penetrated by HV Slug. 02635_ HV Slug penetrates Earth. 02636_ 8R-AWN knocked back. 02640_ Penetrated by HV Slug. 02640_ HV Slug penetrates Earth. 02640_ Penetrated by HV Slug. 02640_ HV Slug penetrates Earth. 02644_ Penetrated by HV Slug. 02644_ HV Slug penetrates Earth. 02644_ Penetrated by HV Slug. 02644_ HV Slug penetrates Earth. 02648_ HV Slug penetrates Machine. 02648_ HV Slug penetrates Wall. 02648_ Penetrated by HV Slug. Map ----- +----------------------------------------------------+ | ?????????????????????????????????????????????????? | | ?????????????????????????????????????????????????# | | ?????????????????????????????????????????????????? | | ?????????????????????????????????????????????????? | | ?????????????#???????????????????????????????????? | | ?????????????????????????????????????????????????# | | ????????????????????????????????????????????????"" | | ??#####?????????????????????????????????????????"" | | ?## ##????????????????? ?????????????????????#"" | | ## #????????????????? ?????????????????????#" | | ?# < #????????????????? ?????????????????????#" | | ?# ###????#??????? ?? ?????????????????????#"" | | ## #???????????? #? #????????????????????##" | | ?# ##????????????# ? #??????????????????#???? | | ?## #?????????????# ? #??????????????????????? | | ??# ##?#??????????# # #???????#????????????"?? | | ??## #????????????#;#;###????????????????????? | | ???# #######??????#!!! "##???????????????????? | | ???# #""###?#### "#????????????????????? | | ???## #???? # "##??#???#?#?????#????? | | ????##" ##???#; ""#??#?????????######??? | | ????#"" #####" ""##??????????? """#??? | | ????#### ## ""#??#????????"" """#??? | | ??#????## # ##?????#?#???#"" #??? | | ????#??##"## !#???????##???#"" #??? | | ????????####### @##????#??????#"" "#??# | | ?#???????#????### %%% #?#??##?????? ""???? | | ????????########" % ###??????#????" "????? | | #??????## !!""""" %%%% ##???####???# ##???# | | ???????##! "###% % ###### #?### ###?## | | ????????#! "#?##% g%% % ""###X#% #"###" | | ????????#! ##??#%% % % """"" | | ????#???# !""""""###??##"#% % "" " | | ?????#??#########??????#### " | | ??????????????#???????????### % | | ??????????????????#?????????### | | ???????????????????????????##?## | | ??????????????##?#??????????#??## | | ????????????????????????#???#??### | | ???????????????#????#?#??????????#" | | ?????????????????#???????????#??##" % | | ????????????????????????#???????#"" % %" | | ???????????????????????????????##"" """ | | ????????????????????#???##?????#""" %% ""# | | ???????????????????????????????#""" ""# | | ?????????????????????#?????????#"" ## | | ???????????????????????????????#""" | | ???????????????????????#???????#"" %% | | ???????????????????????????????##" | | ????????????????????????????????#""" | +----------------------------------------------------+ Best States ------------- Heat Dissipation 42 Energy Generation 12 Energy Capacity 265 Matter Stores 300 Matter Capacity 300 Sight Range 16 Terrain Scan Range 16 Terrain Scan Density 10 Armor Coverage 600 Evasion (%) 44 Item Schematics ----------------- Hacking Suite | -9/Materials | Scanalyzed Lgt. Armor Plating | -9/Materials | Extracted Weight Redist. System | -9/Materials | Extracted Mace | -9/Materials | Extracted Heat Sink | -9/Materials | Extracted Robot Schematics ------------------ None Fabricated ------------ Nothing Repaired ---------- Nothing Alien Tech Used ----------------- None Achievements -------------- None Challenges ------------ None Game ------ Seed MultireflexFieldScreen Manual? 0 Play Time 00:25:20 Cumulative 301.0 hours Start 2025.05.29 @ 05:42:58 End 2025.05.29 @ 06:08:45 Sessions 1 Manual Loads 0 Difficulty Rogue Special Mode None Game No. 231 Rogue 222 Adventurer 9 Explorer 0 Win Type - Total 3 Types 2/0/0/1/0/0/0/0/0/0 Lore% 86 Gallery% 75 Achievement% 67 Wizard Run 0 Options --------- Layout 1 ASCII 0 Keyboard 0 Movement Numpad Keybinds 0 Fullscreen 1 Font 24/Smallcaps Map View 50x35 Zoom Use 0% Tactical HUD 1 Map Filters NONE Filters NONE Steam 1 RUN: f4173fb7-6496-4cb8-86de-d1d083e07a56